bitfinex/quotes_ETHUSD_20251124
["timestamp","ask_amount","ask_price","bid_price","bid_amount"]
[1763983362311,0.90699264,2802.0,2801.7,0.001]
[1763983362495,1.31249664,2801.8,2801.7,0.001]
[1763983362695,2.91545828,2801.8,2799.8,0.1]
[1763983363006,0.90699264,2801.3,2800.7,0.14313344]
[1763983363181,0.55886685,2801.2,2798.9,0.18660718]
[1763983363385,0.73821737,2801.1,2799.5,0.1]
[1763983363695,0.33271337,2801.1,2799.5,1.17361606]
[1763983363888,0.55871337,2801.2,2799.5,1.17361606]
[1763983364303,0.405504,2801.1,2799.5,1.17361606]
[1763983364500,0.73821737,2801.1,2799.5,1.17361606]
[1763983364806,0.405504,2801.1,2799.5,1.17361606]
[1763983365177,0.73804143,2801.1,2799.5,1.17361606]
[1763983365577,0.73804143,2801.1,2799.5,1.07361606]
[1763983366304,0.73804143,2801.1,2799.6,0.1]
[1763983367176,0.73804143,2801.1,2799.5,1.07361606]
[1763983367177,1.26875518,2801.1,2799.5,1.07361606]
[1763983367376,0.93621775,2801.1,2799.5,1.07361606]
[1763983368978,0.90699264,2801.3,2799.7,0.1]
[1763983369206,0.405504,2801.1,2799.8,0.1]
[1763983369505,0.226,2801.0,2799.5,1.07361606]
[1763983369804,0.226,2801.0,2799.6,0.1]
[1763983370377,0.226,2801.0,2799.5,1.17361606]
[1763983371925,0.226,2801.0,2799.5,1.07361606]
[1763983372127,0.226,2801.0,2799.5,1.9806087]
[1763983372295,0.226,2801.0,2799.9,0.1]
[1763983372622,0.74019393,2801.2,2799.6,0.55527311]
[1763983372791,0.226,2801.1,2799.6,0.405504]
[1763983372997,0.226,2801.1,2800.2,0.1]
[1763983373798,0.226,2801.1,2799.8,0.1]
[1763983373997,0.226,2801.1,2799.9,0.1]
[1763983374301,0.226,2801.1,2800.3,0.405504]
[1763983375203,0.50300434,2801.8,2800.3,0.405504]
[1763983375409,0.55781463,2801.7,2800.5,0.1]
[1763983375633,0.226,2801.7,2800.5,0.1]
[1763983375933,0.226,2801.7,2800.0,0.405504]
[1763983376134,0.226,2801.7,2800.6,0.405504]
[1763983376334,0.405504,2801.6,2800.6,0.405504]
[1763983376539,0.73732249,2801.6,2800.6,0.405504]
[1763983377400,0.405504,2801.6,2800.6,0.405504]
[1763983377622,0.73719487,2801.6,2800.6,0.405504]
[1763983377821,0.405504,2801.6,2800.6,0.405504]
[1763983378026,0.73716476,2801.6,2800.6,0.405504]
[1763983380351,0.73636476,2801.6,2800.6,0.405504]
[1763983381813,0.33166076,2801.6,2800.6,0.405504]
[1763983382018,0.33143502,2801.6,2800.6,0.405504]
[1763983382218,0.226,2801.7,2800.6,0.405504]
[1763983382821,0.405504,2801.6,2800.6,0.405504]
[1763983383055,0.73693902,2801.6,2800.6,0.405504]
[1763983384355,0.405504,2801.4,2800.6,0.405504]
[1763983384546,0.73693902,2801.4,2800.6,0.405504]
[1763983385458,0.73693902,2801.4,2799.8,0.90699264]
[1763983385459,0.33143502,2801.4,2799.9,0.9427082]
[1763983385684,0.41269806,2801.5,2800.5,0.1]
[1763983386189,0.74413308,2801.5,2800.5,0.1]
[1763983386363,0.18669806,2801.5,2800.6,0.03570663]
[1763983386563,0.55827734,2802.1,2800.9,0.1]
[1763983386776,1.02010507,2802.0,2800.9,0.1]
[1763983386979,1.02010507,2802.0,2800.0,0.45143919]
[1763983386980,0.18666095,2801.6,2800.7,0.90699264]
[1763983387179,0.33227734,2801.8,2800.7,0.90699264]
[1763983387363,0.18667464,2801.5,2800.7,0.90699264]
[1763983387562,0.18667464,2801.5,2800.3,0.1]
[1763983388294,0.18667464,2801.5,2800.2,0.68782773]
[1763983389090,0.41267464,2801.5,2800.2,0.68782773]
[1763983389284,0.74517599,2801.5,2800.2,0.68782773]
[1763983389459,0.33250135,2801.4,2800.2,0.68782773]
[1763983389888,0.33250135,2801.4,2800.2,0.78782773]
[1763983390087,0.41267464,2801.5,2800.2,0.78782773]
[1763983390469,0.41267464,2801.5,2800.2,0.68782773]
[1763983390692,0.74517599,2801.5,2800.2,0.68782773]
[1763983390866,0.33250135,2801.4,2800.2,0.68782773]
[1763983391065,0.41267464,2801.5,2800.2,0.68782773]
[1763983391272,0.33250135,2801.4,2800.2,0.68782773]
[1763983392460,0.33250135,2801.4,2800.2,0.78782773]
[1763983392797,0.33250135,2801.4,2800.2,0.68782773]
[1763983393102,0.33250135,2801.3,2800.2,0.68782773]
[1763983393399,0.33250135,2801.4,2800.2,0.68782773]
[1763983393595,0.33250135,2801.3,2800.2,0.68782773]
[1763983393770,0.33250135,2801.4,2800.2,0.68782773]
[1763983393975,0.33250135,2801.3,2800.2,0.68782773]
[1763983394159,0.41267464,2801.5,2800.2,0.68782773]
[1763983394160,0.33250135,2801.4,2800.2,0.68782773]
[1763983394360,0.33250135,2801.3,2800.2,0.68782773]
[1763983394560,0.33250135,2801.4,2800.2,0.68782773]
[1763983394760,0.33250135,2801.3,2800.2,0.68782773]
[1763983395063,0.33250135,2801.4,2800.2,0.68782773]
[1763983395362,0.33250135,2801.3,2800.2,0.68782773]
[1763983395575,0.33250135,2801.4,2800.2,0.68782773]
[1763983395798,0.33250135,2801.3,2800.2,0.68782773]
[1763983395960,0.33250135,2801.2,2800.2,0.68782773]
[1763983396160,0.33250135,2801.3,2800.2,0.68782773]
[1763983396407,0.33250135,2801.2,2800.2,0.68782773]
[1763983396604,0.33250135,2801.3,2800.2,0.68782773]
[1763983396785,0.33250135,2801.2,2800.2,0.68782773]
[1763983396973,0.33250135,2801.4,2800.2,0.68782773]
[1763983397171,0.90699264,2801.1,2800.2,0.68782773]
[1763983397397,1.69376007,2801.1,2800.2,0.68782773]
[1763983398770,1.69376007,2801.1,2800.2,0.78782773]
[1763983399487,0.41267464,2801.5,2800.2,0.78782773]
[1763983399488,0.90699264,2801.4,2800.2,0.78782773]
[1763983399700,0.226,2801.4,2800.5,0.1]
[1763983399998,0.18667464,2801.5,2800.5,0.1]
[1763983400587,0.18667464,2801.5,2800.6,0.88782773]
[1763983400991,0.18667464,2801.5,2800.6,0.78782773]
[1763983401364,0.90699264,2801.4,2800.6,0.78782773]
[1763983403190,1.09366728,2801.5,2800.6,0.88782773]
[1763983403390,1.09366728,2801.5,2800.7,0.1]
[1763983404260,1.09286728,2801.5,2800.7,0.1]
[1763983404684,0.18587464,2801.5,2800.7,0.1]
[1763983405892,0.18587464,2801.5,2800.6,0.78782773]
[1763983406204,0.18587464,2801.5,2800.5,0.326]
[1763983406404,0.18587464,2801.5,2800.5,0.1]
[1763983406700,0.18587464,2801.5,2800.6,0.33316407]
[1763983408409,0.90699264,2801.4,2800.2,0.226]
[1763983408607,0.81213803,2801.3,2800.3,0.33316407]
[1763983410081,0.81213803,2801.3,2800.5,0.001]
[1763983413511,0.3331607,2801.2,2800.5,0.001]
[1763983414007,0.33316054,2801.2,2800.5,0.001]
[1763983414817,0.226,2801.3,2800.5,0.001]
[1763983415222,0.55921446,2801.3,2800.5,0.33416407]
[1763983415418,0.226,2801.4,2800.5,0.33416407]
[1763983415628,0.55924914,2801.4,2800.6,0.1]
[1763983415921,0.33324914,2801.4,2800.5,0.33416407]
[1763983416097,0.18587464,2801.5,2800.7,0.1]
[1763983418221,0.18587464,2801.5,2800.8,0.18587464]
[1763983422031,0.002,2801.6,2800.8,0.18587464]
[1763983425540,0.002,2801.6,2800.9,0.0357028]
[1763983425742,0.002,2801.6,2801.4,0.1]
[1763983426245,0.002,2801.6,2801.5,0.18664332]
[1763983426649,0.002,2801.6,2800.8,0.90699264]
[1763983426976,0.002,2801.6,2801.3,0.18664332]
[1763983428052,4.90440092,2801.6,2800.6,0.1]
[1763983428216,4.90440092,2801.6,2800.9,1.0732243]
[1763983428615,0.49164009,2801.6,2800.9,1.0732243]
[1763983428819,0.0012,2801.6,2800.5,0.327]
[1763983429039,0.0012,2801.6,2800.6,0.90699264]
[1763983429821,0.33400422,2801.6,2800.6,0.90699264]
[1763983430018,0.0012,2801.6,2800.6,0.90699264]
[1763983437674,0.0012,2801.6,2800.7,0.1]
[1763983438376,0.0012,2801.6,2800.8,0.03570408]
[1763983438671,0.0012,2801.6,2800.8,0.90699264]
[1763983439344,0.33278416,2801.5,2800.8,0.90699264]
[1763983439546,0.0012,2801.6,2800.8,0.90699264]
[1763983440745,0.0012,2801.6,2800.9,0.0357028]
[1763983440959,0.0012,2801.6,2801.0,0.226]
[1763983441177,0.0012,2801.6,2801.4,0.1]
[1763983441764,0.0012,2801.6,2801.4,0.28664332]
[1763983444681,0.0012,2801.6,2801.5,21.66445597]
[1763983444885,0.0012,2801.6,2801.5,23.77185897]
[1763983445088,0.0012,2801.6,2801.5,18.20916297]
[1763983445389,0.0012,2801.6,2801.5,3.83504164]
[1763983445593,0.0012,2801.6,2801.5,0.731504]
[1763983446296,0.0012,2801.6,2801.5,0.1]
[1763983446481,0.0012,2801.6,2801.5,0.326]
[1763983446685,0.0012,2801.6,2801.5,0.226]
[1763983446990,0.0012,2801.6,2801.4,0.28664332]
[1763983447593,0.0012,2801.6,2801.5,0.1]
[1763983451895,0.0004,2801.6,2801.5,0.1]
[1763983452291,0.0004,2801.6,2801.5,0.24305563]
[1763983452488,0.0004,2801.6,2801.5,0.27875079]
[1763983452698,0.0004,2801.6,2801.5,0.68619744]
[1763983452899,0.0004,2801.6,2801.5,1.59319008]
[1763983454190,0.0004,2801.6,2801.5,20.49080341]
[1763983454392,0.0004,2801.6,2801.5,23.69445325]
[1763983454604,0.0004,2801.6,2801.5,11.38593625]
[1763983455417,0.0004,2801.6,2801.5,16.96450125]
[1763983455997,0.002,2801.9,2801.8,0.505504]
[1763983456178,0.002,2801.9,2801.8,33.58963823]
[1763983456520,0.002,2801.9,2801.8,32.88545089]
[1763983457057,0.002,2801.9,2801.8,8.56131876]
[1763983457227,0.002,2801.9,2801.8,8.20344576]
[1763983457392,0.002,2801.9,2801.8,13.0319045]
[1763983457732,0.002,2801.9,2801.8,9.3434755]
[1763983457884,0.002,2801.9,2801.8,9.5694755]
[1763983458423,0.002,2801.9,2801.8,17.5152985]
[1763983458823,0.002,2801.9,2801.8,17.2092165]
[1763983459432,0.002,2801.9,2801.8,23.7916255]
[1763983459924,0.002,2801.9,2801.8,19.1793795]
[1763983460323,0.002,2801.9,2801.8,18.3528435]
[1763983460525,0.002,2801.9,2801.8,17.0513435]
[1763983461256,0.002,2801.9,2801.8,13.2099165]
[1763983461556,0.002,2801.9,2801.8,14.8658225]
[1763983461757,0.002,2801.9,2801.8,9.8681215]
[1763983462726,0.002,2801.9,2801.8,19.6430265]
[1763983462926,0.002,2801.9,2801.8,19.78602536]
[1763983463554,0.002,2801.9,2801.8,7.40280836]
[1763983463757,0.002,2801.9,2801.8,26.61472136]
[1763983464122,0.002,2801.9,2801.8,19.02488836]
[1763983464326,0.002,2801.9,2801.8,11.08503836]
[1763983464580,0.002,2801.9,2801.8,7.40280836]
[1763983464756,0.002,2801.9,2801.8,7.17680836]
[1763983464961,0.002,2801.9,2801.8,5.35062962]
[1763983465822,0.002,2801.9,2801.8,7.65587862]
[1763983466826,0.002,2801.9,2801.8,10.50130662]
[1763983467556,0.002,2801.9,2801.8,8.25330662]
[1763983467728,0.002,2801.9,2801.8,9.43556213]
[1763983467930,0.002,2801.9,2801.8,14.86269413]
[1763983468968,0.002,2801.9,2801.8,18.63148913]
[1763983469164,0.002,2801.9,2801.8,17.43148913]
[1763983469365,0.002,2801.9,2801.8,15.86914313]
[1763983470167,0.002,2801.9,2801.8,11.50510513]
[1763983470328,0.002,2801.9,2801.8,10.80930513]
[1763983471166,0.002,2801.9,2801.8,10.96400813]
[1763983471478,0.002,2801.9,2801.8,10.94955913]
[1763983472172,0.002,2801.9,2801.8,11.91285113]
[1763983473149,0.002,2801.9,2801.8,11.43574513]
[1763983474171,0.002,2801.9,2801.8,15.44296713]
[1763983474540,0.002,2801.9,2801.8,14.24296613]
[1763983474872,0.002,2801.9,2801.8,10.30969313]
[1763983475373,0.002,2801.9,2801.8,11.22458413]
[1763983475551,0.0012,2801.9,2801.8,11.22458413]
[1763983476080,0.0012,2801.9,2801.8,1.83075837]
[1763983476278,0.0012,2801.9,2801.8,0.46899886]
[1763983476684,0.0012,2801.9,2801.8,0.14299886]
[1763983476881,0.0012,2801.9,2801.8,0.46899886]
[1763983481389,0.0012,2801.9,2801.8,0.5046902]
[1763983481895,0.0012,2801.9,2801.8,1.41168284]
[1763983482064,0.0012,2801.9,2801.8,1.91077204]
[1763983482692,0.0012,2801.9,2801.8,0.96808806]
[1763983483007,0.0012,2801.9,2801.8,0.14399886]
[1763983490789,0.0012,2801.9,2801.8,0.001]
[1763983497799,0.0012,2801.9,2801.8,0.18760896]
[1763983498707,0.0012,2801.9,2801.8,0.001]
[1763983499200,0.0004,2801.9,2801.8,0.001]
[1763983504402,0.73755181,2801.9,2801.8,0.001]
[1763983504805,0.405904,2801.9,2801.8,0.001]
[1763983505000,0.73755181,2801.9,2801.8,0.001]
[1763983505677,6.06091925,2801.9,2801.8,0.001]
[1763983506083,6.28529653,2801.9,2801.8,0.001]
[1763983506312,3.09378853,2801.9,2801.8,0.001]
[1763983506989,3.09429356,2801.9,2801.8,0.001]
[1763983510210,2.54591628,2801.9,2801.8,0.001]
[1763983513854,3.09429356,2801.9,2801.8,0.001]
[1763983514004,4.35643146,2801.9,2801.8,0.001]
[1763983516924,4.54312362,2801.9,2801.8,0.001]
[1763983522448,13.92316962,2801.9,2801.8,0.001]
[1763983522745,1.86087392,2801.8,2801.5,0.001]
[1763983522945,0.405504,2801.6,2801.5,0.001]
[1763983523151,2.54737202,2801.6,2801.5,0.001]
[1763983523316,3.45436466,2801.6,2801.5,0.001]
[1763983524431,9.77436466,2801.6,2801.5,0.001]
[1763983524667,11.05020094,2801.6,2801.5,0.001]
[1763983525044,22.75993894,2801.6,2801.5,0.001]
[1763983525930,19.92506694,2801.6,2801.5,0.001]
[1763983526152,21.79441594,2801.6,2801.5,0.001]
[1763983526352,18.02841594,2801.6,2801.5,0.001]
[1763983526657,27.84556774,2801.6,2801.5,0.001]
[1763983528729,6.22107254,2801.3,2801.2,0.001]
[1763983529058,8.6295047,2801.3,2801.2,0.001]
[1763983529221,8.22449864,2801.2,2800.9,0.001]
[1763983529426,26.50962175,2801.0,2800.9,0.001]
[1763983529626,26.20087849,2801.0,2800.9,0.001]
[1763983529860,28.25599575,2801.0,2800.9,0.001]
[1763983530222,27.98485003,2801.0,2800.9,0.001]
[1763983530556,22.88783747,2801.0,2800.9,0.001]
[1763983530758,0.405504,2800.8,2800.5,0.001]
[1763983531055,8.01546288,2800.6,2800.5,0.001]
[1763983531254,10.18047402,2800.6,2800.5,0.001]
[1763983531456,10.945485,2800.6,2800.5,0.001]
[1763983532240,10.18047402,2800.6,2800.5,0.001]
[1763983536235,2.9291305,2800.6,2800.5,0.001]
[1763983536430,1.64464948,2800.6,2800.5,0.001]
[1763983537042,2.68974051,2800.6,2800.5,0.001]
[1763983541238,1.64464948,2800.6,2800.5,0.001]
[1763983542068,1.23914548,2800.6,2800.5,0.001]
[1763983542461,1.64464948,2800.6,2800.5,0.001]
[1763983543071,1.23914548,2800.6,2800.5,0.001]
[1763983543478,1.64464948,2800.6,2800.5,0.001]
[1763983543672,1.23914548,2800.6,2800.5,0.001]
[1763983544196,1.64431949,2800.6,2800.5,0.001]
[1763983544692,1.31249664,2800.6,2800.5,0.001]
[1763983545569,0.90699264,2800.6,2800.5,0.001]
[1763983545883,6.32,2801.0,2800.5,0.001]
[1763983546057,0.90699264,2800.9,2800.5,0.001]
[1763983546257,6.32,2801.0,2800.5,0.001]
[1763983546564,0.90699264,2800.9,2800.5,0.001]
[1763983546766,0.90619264,2800.9,2800.5,0.001]
[1763983549894,0.90819264,2800.9,2800.5,0.001]
[1763983551154,0.002,2800.9,2800.5,0.001]
[1763983552664,0.405504,2800.8,2800.5,0.001]
[1763983552865,1.31249664,2800.8,2800.5,0.001]
[1763983553362,0.407504,2800.9,2800.5,0.001]
[1763983553758,0.002,2800.9,2800.5,0.001]
[1763983559611,5.31321557,2800.8,2800.5,0.001]
[1763983560606,0.405504,2800.8,2800.5,0.001]
[1763983563738,0.002,2800.9,2800.5,0.001]
[1763983565731,0.002,2800.9,2800.8,4.90771157]
[1763983566355,0.002,2800.9,2800.6,5.39858273]
[1763983566706,0.002,2800.9,2800.8,0.14311295]
[1763983568046,0.004,2800.9,2800.8,0.14311295]
[1763983569248,0.004,2800.9,2800.6,0.49087116]
[1763983569249,0.004,2800.9,2800.5,0.002]
[1763983569410,0.004,2800.9,2800.7,0.407504]
[1763983570570,0.0032,2800.9,2800.7,0.407504]
[1763983574568,0.0032,2800.9,2800.7,5.31521557]
[1763983574771,0.0032,2800.9,2800.8,0.54152156]
[1763983576989,0.0032,2800.9,2800.8,0.68462939]
[1763983578912,0.0032,2800.9,2800.8,0.78462939]
[1763983582467,0.0032,2800.9,2800.8,1.01062939]
[1763983585207,0.0032,2800.9,2800.8,1.91762203]
[1763983585737,0.0032,2800.9,2800.8,1.81762203]
[1763983585934,0.0032,2800.9,2800.8,1.91762203]
[1763983587135,0.0032,2800.9,2800.8,1.91862203]
[1763983588528,0.0032,2800.9,2800.8,1.81862203]
[1763983589033,0.0032,2800.9,2800.8,1.59262203]
[1763983589333,0.0032,2800.9,2800.8,0.14410783]
[1763983589732,0.0032,2800.9,2800.8,0.001]
[1763983598076,0.0024,2800.9,2800.8,0.001]
[1763983598451,0.0024,2800.9,2800.8,1.00799264]
[1763983598772,0.0024,2800.9,2800.8,1.23399264]
[1763983599074,0.0024,2800.9,2800.8,1.88938686]
[1763983600785,0.0024,2800.9,2800.8,2.03247575]
[1763983600990,0.0024,2800.9,2800.8,2.06817983]
[1763983602498,0.0024,2800.9,2800.8,2.03247575]
[1763983602659,0.0024,2800.9,2800.8,1.12548311]
[1763983602995,0.0024,2800.9,2800.8,0.47008889]
[1763983603897,0.0024,2800.9,2800.8,0.37008889]
[1763983604075,0.0024,2800.9,2800.8,0.14408889]
[1763983604401,0.0024,2800.9,2800.8,0.37008889]
[1763983606019,0.0024,2800.9,2800.8,0.14408889]
[1763983608519,0.0024,2800.9,2800.8,0.001]
[1763983608720,0.54891482,2800.9,2800.8,0.001]
[1763983608924,0.95441882,2800.9,2800.8,0.001]
[1763983609404,1.28715573,2800.9,2800.8,0.001]
[1763983609583,0.95441882,2800.9,2800.8,0.001]
[1763983611255,1.2868721,2800.9,2800.8,0.001]
[1763983612489,0.0024,2800.9,2800.8,0.001]
[1763983618015,0.0016,2800.9,2800.8,0.001]
[1763983618440,0.0016,2800.9,2800.8,0.14414266]
[1763983621356,0.0016,2800.9,2800.8,0.24414266]
[1763983622361,0.0016,2800.9,2800.8,4.72154375]
[1763983622654,0.0016,2800.9,2800.8,5.28796792]
[1763983622958,0.0016,2800.9,2800.8,1.71755947]
[1763983623129,0.0016,2800.9,2800.8,1.1511353]
[1763983628359,0.0016,2800.9,2800.8,1.0511353]
[1763983628559,0.0016,2800.9,2800.8,1.1511353]
[1763983629358,0.0016,2800.9,2800.8,1.3771353]
[1763983633027,0.0016,2800.9,2800.8,1.41283938]
[1763983633361,0.0016,2800.9,2800.8,1.91118811]
[1763983634474,0.0016,2800.9,2800.8,1.3771353]
[1763983634960,0.0016,2800.9,2800.8,1.41283938]
[1763983635124,0.0016,2800.9,2800.8,4.98324783]
[1763983635726,0.0016,2800.9,2800.8,11.95225883]
[1763983635953,0.0016,2800.9,2800.8,11.91655475]
[1763983636162,0.0016,2800.9,2800.8,12.25695442]
[1763983636464,0.0016,2800.9,2800.8,10.13902142]
[1763983636959,0.0016,2800.9,2800.8,13.67358342]
[1763983637756,0.0016,2800.9,2800.8,14.36158342]
[1763983637954,0.0016,2800.9,2800.8,14.08348842]
[1763983638279,0.0016,2800.9,2800.8,10.90001642]
[1763983638836,0.0016,2800.9,2800.8,13.35054742]
[1763983639042,0.002,2801.2,2801.1,0.405504]
[1763983639241,0.002,2801.2,2800.8,1.69285133]
[1763983639465,0.002,2801.2,2800.9,0.226]
[1763983639665,0.002,2801.2,2800.9,0.326]
[1763983640070,0.002,2801.2,2800.9,0.1]
[1763983640272,0.002,2801.2,2801.0,0.226]
[1763983640886,0.002,2801.2,2800.8,0.14414266]
[1763983640887,0.002,2801.2,2800.9,0.226]
[1763983641752,0.0012,2801.2,2800.9,0.226]
[1763983642455,0.0012,2801.2,2800.8,0.14414266]
[1763983649806,0.0012,2801.2,2800.8,0.001]
[1763983656837,0.405504,2801.1,2800.8,0.001]
[1763983659804,1.31249664,2801.1,2800.8,0.001]
[1763983662736,0.405504,2801.1,2800.8,0.001]
[1763983665537,0.404704,2801.1,2800.8,0.001]
[1763983667920,4.90713664,2800.9,2800.8,0.001]
[1763983668243,7.46283268,2800.9,2800.8,0.001]
[1763983668446,6.55109117,2800.9,2800.8,0.001]
[1763983669542,6.73784116,2800.9,2800.8,0.001]
[1763983675876,6.73853574,2800.9,2800.8,0.001]
[1763983676860,7.50382439,2800.9,2800.8,0.001]
[1763983677302,8.25420683,2800.9,2800.8,0.001]
[1763983678167,3.34707019,2800.9,2800.8,0.001]
[1763983678361,2.58178154,2800.9,2800.8,0.001]
[1763983680691,2.80778154,2800.9,2800.8,0.001]
[1763983680901,2.0573991,2800.9,2800.8,0.001]
[1763983681255,6.96453574,2800.9,2800.8,0.001]
[1763983681977,1.31249664,2800.8,2800.5,0.00045]
[1763983682200,0.90699264,2800.5,2799.2,4.90460664]
[1763983682394,0.405504,2800.3,2799.5,0.14318929]
[1763983682705,1.31249664,2800.3,2799.5,0.14318929]
[1763983683010,1.31249664,2800.3,2798.8,4.90713664]
[1763983683011,0.405504,2800.0,2798.8,4.90713664]
[1763983683211,0.90699264,2799.8,2798.8,4.90713664]
[1763983683372,0.90699264,2799.8,2799.1,1.07402733]
[1763983683570,0.75726406,2799.9,2799.1,1.07402733]
[1763983683771,0.226,2799.9,2799.1,1.07402733]
[1763983687092,0.226,2799.9,2799.5,0.001]
[1763983688475,0.90699264,2800.3,2799.5,0.001]
[1763983688799,0.405504,2800.1,2799.5,0.001]
[1763983689376,0.404704,2800.1,2799.5,0.001]
[1763983694944,0.73698349,2800.1,2799.5,0.001]
[1763983695147,0.405504,2799.9,2799.5,0.001]
[1763983697440,0.18699761,2800.0,2799.5,0.001]
[1763983697597,0.226,2800.0,2799.5,0.001]
[1763983698401,1.13299264,2800.0,2799.5,0.001]
[1763983699115,0.405504,2799.9,2799.5,0.001]
[1763983704237,0.73828835,2799.9,2799.5,0.001]
[1763983707134,0.33278435,2799.8,2799.5,0.001]
[1763983707511,0.73828835,2799.9,2799.5,0.001]
[1763983708239,0.226,2799.8,2799.5,0.001]
[1763983708440,0.55878435,2799.8,2799.5,0.001]
[1763983710330,0.33278435,2799.8,2799.5,0.001]
[1763983710532,0.33278435,2800.0,2799.5,0.001]
[1763983710720,0.55878435,2799.9,2799.5,0.001]
[1763983711044,0.33278435,2799.8,2799.5,0.001]
[1763983711631,0.226,2799.9,2799.5,0.001]
[1763983711835,0.3334789,2799.8,2799.5,0.001]
[1763983712038,0.7698082,2800.1,2799.5,0.001]
[1763983712039,0.226,2799.9,2799.5,0.001]
[1763983712520,0.002,2800.1,2799.5,0.001]
[1763983712732,0.002,2800.1,2799.6,0.505504]
[1763983713143,0.0012,2800.1,2799.6,0.405504]
[1763983714657,0.33358309,2800.0,2799.6,0.405504]
[1763983715028,0.0012,2800.1,2799.5,0.001]
[1763983715365,0.33356892,2800.0,2799.5,0.001]
[1763983715523,0.0012,2800.1,2799.5,0.001]
[1763983715724,0.33356471,2800.0,2799.5,0.001]
[1763983716032,0.0012,2800.1,2799.5,0.001]
[1763983716233,0.33356506,2800.0,2799.5,0.001]
[1763983716538,0.0012,2800.1,2799.5,0.001]
[1763983716857,0.33354233,2800.0,2799.5,0.001]
[1763983717025,0.0012,2800.1,2799.5,0.001]
[1763983717227,0.3335463,2800.0,2799.5,0.001]
[1763983717531,0.0012,2800.1,2799.5,0.001]
[1763983717749,0.33352404,2800.0,2799.5,0.001]
[1763983717933,0.0012,2800.1,2799.5,0.001]
[1763983718133,0.0012,2800.1,2799.5,5.06543832]
[1763983718337,0.0012,2800.1,2799.6,0.91204783]
[1763983719242,0.0012,2800.1,2799.6,1.01204783]
[1763983719752,0.0012,2800.1,2799.6,0.91204783]
[1763983722133,0.0012,2800.1,2799.5,0.001]
[1763983722645,0.33326026,2800.0,2799.5,0.001]
[1763983729631,0.2272,2800.1,2799.5,0.001]
[1763983729843,0.33326648,2800.0,2799.5,0.001]
[1763983730162,0.2272,2800.1,2799.5,0.001]
[1763983730362,0.33330893,2800.0,2799.5,0.001]
[1763983730542,0.2272,2800.1,2799.5,0.001]
[1763983730743,0.33332351,2800.0,2799.5,0.001]
[1763983730945,0.2272,2800.1,2799.5,0.001]
[1763983731144,0.33332421,2800.0,2799.5,0.001]
[1763983731440,0.33332959,2799.9,2799.5,0.001]
[1763983731647,0.2272,2800.1,2799.5,0.001]
[1763983731852,0.33332976,2800.0,2799.5,0.001]
[1763983732158,0.33332976,2799.9,2799.5,0.001]
[1763983732464,0.2272,2800.1,2799.5,0.001]
[1763983732647,0.33332982,2800.0,2799.5,0.001]
[1763983732836,0.33332982,2799.9,2799.5,0.001]
[1763983733036,0.2272,2800.1,2799.5,0.001]
[1763983733332,0.33332947,2800.0,2799.5,0.001]
[1763983733532,0.33332947,2799.9,2799.5,0.001]
[1763983733733,0.2272,2800.1,2799.5,0.001]
[1763983733946,0.33333608,2800.0,2799.5,0.001]
[1763983734272,0.33333608,2799.9,2799.5,0.001]
[1763983734569,0.2272,2800.1,2799.5,0.001]
[1763983734770,0.33335363,2800.0,2799.5,0.001]
[1763983734935,0.33335363,2799.9,2799.5,0.001]
[1763983735136,0.2272,2800.1,2799.5,0.001]
[1763983735373,0.33335839,2800.0,2799.5,0.001]
[1763983735540,0.33335839,2799.9,2799.5,0.001]
[1763983735740,0.2272,2800.1,2799.5,0.001]
[1763983736069,0.33337246,2800.0,2799.5,0.001]
[1763983736267,0.33337246,2799.9,2799.5,0.001]
[1763983736465,0.2272,2800.1,2799.5,0.001]
[1763983736649,0.33338081,2800.0,2799.5,0.001]
[1763983736848,0.33258081,2799.9,2799.5,0.001]
[1763983737051,0.2272,2800.1,2799.5,0.001]
[1763983737373,0.226,2800.0,2799.5,0.001]
[1763983738740,0.0012,2800.1,2799.5,0.001]
[1763983739170,0.2272,2800.1,2799.5,0.001]
[1763983747463,0.2272,2800.1,2799.6,0.7679326]
[1763983748781,0.33335016,2800.0,2799.6,0.7679326]
[1763983748984,0.33335016,2799.9,2799.6,0.7679326]
[1763983749187,0.2272,2800.1,2799.6,0.7679326]
[1763983749358,0.33335734,2800.0,2799.6,0.7679326]
[1763983749559,0.33335734,2799.9,2799.6,0.7679326]
[1763983749760,0.33335734,2799.8,2799.6,0.7679326]
[1763983749981,0.2272,2800.1,2799.6,0.7679326]
[1763983750263,0.33341962,2800.0,2799.6,0.7679326]
[1763983750459,0.33341962,2799.9,2799.6,0.7679326]
[1763983750654,0.33341962,2799.8,2799.6,0.7679326]
[1763983750876,0.2272,2800.1,2799.6,0.7679326]
[1763983751069,0.33351545,2800.0,2799.6,0.7679326]
[1763983751357,0.2272,2800.1,2799.6,0.7679326]
[1763983751358,0.33351545,2799.9,2799.6,0.7679326]
[1763983751585,0.33351545,2799.8,2799.6,0.7679326]
[1763983751788,0.2272,2800.1,2799.6,0.7679326]
[1763983751992,0.33369085,2800.0,2799.6,0.7679326]
[1763983752296,0.33369085,2799.9,2799.6,0.7679326]
[1763983752462,0.33369085,2799.8,2799.6,0.7679326]
[1763983752662,0.2272,2800.1,2799.6,0.7679326]
[1763983752872,0.33377153,2800.0,2799.6,0.7679326]
[1763983753078,0.33377153,2799.9,2799.6,0.7679326]
[1763983753364,0.33377153,2799.8,2799.6,0.7679326]
[1763983753682,0.2272,2800.1,2799.6,0.7679326]
[1763983753995,0.33377125,2800.0,2799.6,0.7679326]
[1763983754199,0.33377125,2799.9,2799.6,0.7679326]
[1763983754398,0.33377125,2799.8,2799.6,0.7679326]
[1763983754590,0.2272,2800.1,2799.6,0.7679326]